lending/lending_fUSD_20250917
["ID","MTS","AMOUNT","RATE_DAILY","PERIOD"]
[385883278,1758091843779,-186.22,0.00026659,2]
[385883279,1758091843788,-1107.0,0.00026842,2]
[385883280,1758091843797,-180.13689359,0.00026843,2]
[385883281,1758091843806,-3000.0,0.00026843,2]
[385883282,1758091843815,-5422.05139787,0.00026843,2]
[385883283,1758091843838,-2821.29556633,0.00026843,2]
[385883284,1758091843895,-639.3415506,0.00026843,2]
[385883285,1758091843904,-151.0,0.00026843,2]
[385883286,1758091843913,-257.91778498,0.00026843,2]
[385883287,1758091843924,-13840.90699901,0.00026888,2]
[385883288,1758091843933,-9211.34798985,0.00026898,2]
[385883289,1758091843943,-400.0,0.000269,9]
[385883290,1758091843951,-9552.16786547,0.00026953,2]
[385883291,1758091843960,-9905.5980765,0.00027008,2]
[385883292,1758091843970,-1052.51,0.00027028,2]
[385883293,1758091843979,-226.08814849,0.00027062,2]
[385883294,1758091843989,-10272.10520533,0.00027063,2]
[385883295,1758091843999,-1680.0,0.00027099,2]
[385883296,1758091844008,-150.0,0.00027101,7]
[385883297,1758091844018,-10652.17309792,0.00027118,2]
[385883298,1758091844027,-11046.30350255,0.00027173,2]
[385883299,1758091844039,-174.27,0.000272,2]
[385883300,1758091844048,-11455.01673214,0.00027228,2]
[385883301,1758091844058,-11878.85235123,0.00027283,2]
[385883302,1758091844067,-145.01955117,0.00027287,2]
[385883303,1758091844080,-335.74,0.00027287,2]
[385883312,1758091845861,-2562.0,0.00027287,2]
[385883313,1758091845961,-6281.69395236,0.00027287,2]
[385883314,1758091845971,-11006.34183414,0.00027297,2]
[385883315,1758091845980,-732.83382234,0.00027297,2]
[385883316,1758091845990,-12318.36988823,0.00027338,2]
[385883317,1758091846000,-2130.81535609,0.00027348,2]
[385883318,1758091846009,-500.0,0.00027373,2]
[385883319,1758091846018,-500.0,0.00027373,2]
[385883320,1758091846028,-159.83869032,0.00027373,2]
[385883321,1758091846037,-500.0,0.00027373,2]
[385883322,1758091846046,-7030.16016651,0.00027386,2]
[385883323,1758091846056,-18920.94630001,0.00027387,2]
[385883324,1758091846082,-28411.5860838,0.00027387,2]
[385883325,1758091846112,-711.57984227,0.00027387,2]
[385883326,1758091846124,-1135.90399997,0.00027387,2]
[385883328,1758091846214,-907.439499,0.00027387,2]
[385883363,1758092303405,156.15,0.00013156,2]
[385883364,1758092303590,156.15,0.00017541,2]
[385883367,1758092425878,32079.57680625,0.000185,2]
[385883368,1758092425907,28637.89327728,0.000185,2]
[385883369,1758092425932,34905.97656,0.000185,2]
[385883370,1758092425958,822086.32400606,0.000185,2]
[385883371,1758092425992,584114.181704,0.000185,2]
[385883380,1758092706461,2000.0,0.00024119,120]
[385883388,1758093021501,400.0,0.000185,2]
[385883390,1758093032219,-5513.0,0.000215,3]
[385883391,1758093032229,-156.15,0.00021926,2]
[385883392,1758093032238,-5513.0,0.00022,5]
[385883393,1758093032247,-300.0,0.00022099,2]
[385883394,1758093032255,-300.0,0.00022099,2]
[385883395,1758093032264,-1200.0,0.00022099,2]
[385883396,1758093032274,-151.0,0.00022785,2]
[385883397,1758093032283,-400.0,0.00024,2]
[385883398,1758093032292,-420.0,0.00024012,2]
[385883399,1758093032301,-102.22199743,0.00024124,2]
[385883400,1758093032312,-623.01201684,0.00024124,2]
[385883401,1758093032323,-545.964,0.00024124,2]
[385883402,1758093032334,-408.80198573,0.00024124,2]
[385883403,1758093032343,-104.89169258,0.00024454,2]
[385883404,1758093032374,-109.09830742,0.00024454,2]
[385883405,1758093032383,-168.08,0.00024658,2]
[385883406,1758093032392,-206.63363834,0.00024707,2]
[385883407,1758093032401,-2.65369377,0.00024707,2]
[385883410,1758093032485,-147.34630623,0.00024707,2]
[385883411,1758093032494,-625.0,0.000248,2]
[385883412,1758093032503,-11038.4996934,0.000249,2]
[385883413,1758093032512,-250.0,0.00025442,2]
[385883414,1758093032521,-666.0,0.00026018,3]
[385883415,1758093032530,-213.99,0.00026031,7]
[385883416,1758093032539,-2759.821214,0.00026057,2]
[385883419,1758093038445,-548.47638316,0.0002591,2]
[385883421,1758093038457,-2274.08502473,0.0002591,2]
[385883440,1758093040230,-166.44,0.00024528,2]
[385883441,1758093040240,-2177.43859211,0.0002591,2]
[385883442,1758093040250,-500.0,0.00026056,2]
[385883443,1758093040260,-500.0,0.00026056,2]
[385883444,1758093040270,-522.87067447,0.00026056,2]
[385883445,1758093040280,-500.0,0.00026056,2]
[385883446,1758093040290,-1539.50073317,0.00026057,2]
[385883448,1758093042618,2000.0,0.00030136,120]
[385883543,1758093046568,-1603.31349742,0.00026057,2]
[385883544,1758093046579,-428.51278458,0.00026057,2]
[385883545,1758093046598,-3203.84926943,0.00026057,2]
[385884644,1758093170323,2755.56147552,0.00030136,120]
[385884648,1758093361561,152.03,0.00012833,2]
[385884649,1758093361759,152.03,0.00013635,2]
[385884650,1758093362181,152.03,0.00014437,2]
[385884651,1758093362395,152.03,0.00015239,2]
[385884652,1758093362592,152.03,0.00016041,2]
[385884653,1758093362795,152.03,0.00016844,2]
[385884654,1758093362983,152.03,0.00017646,2]
[385884655,1758093363417,152.03,0.00018448,2]
[385884656,1758093363641,152.03,0.0001925,2]
[385884675,1758093980268,109296.88643236,0.000209,30]
[385884687,1758094119087,351.74700299,0.0001901,7]
[385884708,1758094231432,-1200.0,0.00019999,2]
[385884710,1758094231442,-1290.3457402,0.0002,2]
[385884711,1758094231454,-499.04029856,0.0002,2]
[385884712,1758094231465,-271.90793651,0.0002,2]
[385884713,1758094231476,-7819.25809978,0.0002,2]
[385884714,1758094231488,-1914.75277448,0.0002,2]
[385884715,1758094231499,-624.6388998,0.0002,2]
[385884716,1758094231539,-12680.51955511,0.0002,2]
[385884717,1758094231548,-152.03,0.00020052,2]
[385884718,1758094231558,-201.00846429,0.00020588,2]
[385884719,1758094231568,-152.03,0.00020854,2]
[385884720,1758094231579,-543.156,0.00021,2]
[385884721,1758094231588,-247.0,0.00021,5]
[385884722,1758094231599,-3633.8784067,0.00021437,2]
[385884723,1758094231609,-152.03,0.00021656,2]
[385884724,1758094231619,-1680.0,0.00021881,2]
[385884725,1758094231628,-300.0,0.00022,2]
[385884726,1758094231638,-250.0,0.00022057,2]
[385884727,1758094231648,-152.03,0.00022458,2]
[385884728,1758094231659,-850.0,0.00022998,2]
[385884729,1758094231668,-1094.0,0.00022999,2]
[385884730,1758094231678,-500.0,0.00022999,2]
[385884731,1758094231688,-500.0,0.00022999,2]
[385884732,1758094231698,-500.0,0.00022999,2]
[385884733,1758094231708,-500.0,0.00022999,2]
[385884734,1758094231718,-500.0,0.00022999,2]
[385884735,1758094231727,-500.0,0.00022999,2]
[385884736,1758094231737,-500.0,0.00022999,2]
[385884737,1758094231747,-500.0,0.00022999,2]
[385884738,1758094231756,-500.0,0.00022999,2]
[385884739,1758094231766,-500.0,0.00022999,2]
[385884740,1758094231775,-500.0,0.00022999,2]
[385884741,1758094231785,-500.0,0.00022999,2]
[385884742,1758094231794,-500.0,0.00022999,2]
[385884743,1758094231804,-500.0,0.00022999,2]
[385884744,1758094231814,-500.0,0.00022999,2]
[385884745,1758094231823,-500.0,0.00022999,2]
[385884746,1758094231833,-500.0,0.00022999,2]
[385884747,1758094231843,-500.0,0.00022999,2]
[385884748,1758094231852,-534.1058471,0.00022999,2]
[385884749,1758094231862,-500.0,0.00022999,2]
[385884750,1758094231871,-500.0,0.00022999,2]
[385884751,1758094231881,-500.0,0.00022999,2]
[385884753,1758094231890,-300.0,0.00022999,5]
[385884755,1758094231900,-500.0,0.00022999,2]
[385884757,1758094231910,-500.0,0.00022999,2]
[385884759,1758094231920,-500.0,0.00022999,2]
[385884761,1758094231930,-500.0,0.00022999,2]
[385884763,1758094231939,-500.0,0.00022999,2]
[385884766,1758094231949,-500.0,0.00022999,2]
[385884769,1758094231959,-600.0,0.00022999,2]
[385884772,1758094231968,-20023.98113794,0.00023,30]
[385884774,1758094231978,-315.08,0.00023086,2]
[385884776,1758094231988,-4703.70201525,0.00023189,2]
[385884778,1758094231997,-152.03,0.0002326,2]
[385884780,1758094232007,-627.09184186,0.00023702,2]
[385884782,1758094232017,-627.09184186,0.00023702,2]
[385884784,1758094232026,-150.0,0.00023872,7]
[385884786,1758094232036,-214.17,0.00023882,2]
[385884788,1758094232046,-2351.0,0.00023941,2]
[385884790,1758094232055,-161.87,0.00023965,2]
[385884792,1758094232064,-160.46134144,0.00024,2]
[385884794,1758094232073,-5000.00889809,0.00024,5]
[385884796,1758094232082,-500.0,0.00024,2]
[385884799,1758094232093,-500.0,0.00024,2]
[385884801,1758094232102,-500.0,0.00024,2]
[385884803,1758094232111,-500.0,0.00024,2]
[385884805,1758094232124,-1240.39929827,0.00024031,2]
[385884807,1758094232134,-4072.91,0.00024041,2]
[385884809,1758094232144,-152.03,0.00024062,2]
[385884811,1758094232154,-150.0,0.00024348,2]
[385884813,1758094232163,-2000.0,0.000244,2]
[385884815,1758094232173,-250.0,0.00024447,2]
[385884818,1758094232183,-150.0,0.0002446,2]
[385884820,1758094232192,-1942.05,0.00024488,2]
[385884822,1758094232202,-517.0,0.000245,2]
[385884823,1758094232211,-199.19,0.0002454,2]
[385884825,1758094232220,-1780.8,0.00024626,2]
[385884827,1758094232230,-173.23,0.00024658,2]
[385884830,1758094232240,-152.03,0.00024864,2]
[385884832,1758094232249,-151.0,0.00024885,2]
[385884834,1758094232258,-151.0,0.00024885,2]
[385884836,1758094232268,-151.0,0.00024885,2]
[385884838,1758094232277,-151.0,0.00024885,2]
[385884840,1758094232287,-151.0,0.00024885,2]
[385884842,1758094232297,-151.0,0.00024885,2]
[385884844,1758094232307,-500.0,0.00024885,2]
[385884846,1758094232316,-151.0,0.00024885,2]
[385884848,1758094232326,-500.0,0.00024885,2]
[385884850,1758094232336,-151.0,0.00024885,2]
[385884852,1758094232346,-500.0,0.00024885,2]
[385884854,1758094232356,-151.0,0.00024885,2]
[385884856,1758094232366,-600.0,0.00024885,2]
[385884858,1758094232375,-500.0,0.00024885,2]
[385884860,1758094232385,-193.58576396,0.00024885,2]
[385884863,1758094232399,-306.41423604,0.00024885,2]
[385884865,1758094232409,-151.0,0.00024885,2]
[385884867,1758094232420,-500.0,0.00024885,2]
[385884869,1758094232430,-151.0,0.00024885,2]
[385884871,1758094232440,-500.0,0.00024885,2]
[385884873,1758094232449,-151.0,0.00024885,2]
[385884875,1758094232459,-500.0,0.00024885,2]
[385884877,1758094232468,-151.0,0.00024885,2]
[385884879,1758094232478,-500.0,0.00024885,2]
[385884881,1758094232489,-151.0,0.00024885,2]
[385884883,1758094232498,-500.0,0.00024885,2]
[385884885,1758094232510,-151.0,0.00024885,2]
[385884887,1758094232520,-500.0,0.00024885,2]
[385884889,1758094232529,-500.0,0.00024885,2]
[385884891,1758094232539,-151.0,0.00024885,2]
[385884893,1758094232549,-500.0,0.00024885,2]
[385884895,1758094232558,-151.0,0.00024885,2]
[385884897,1758094232568,-151.0,0.00024885,2]
[385884899,1758094232578,-200.0,0.00024885,2]
[385884901,1758094232588,-151.0,0.00024885,2]
[385884903,1758094232598,-151.0,0.00024885,2]
[385884905,1758094232607,-151.0,0.00024885,2]
[385884907,1758094232617,-151.0,0.00024885,2]
[385884909,1758094232627,-151.0,0.00024885,2]
[385884912,1758094232638,-151.0,0.00024885,2]
[385884914,1758094232648,-151.0,0.00024885,2]
[385884916,1758094232658,-151.0,0.00024885,2]
[385884918,1758094232669,-151.0,0.00024885,2]
[385884920,1758094232678,-151.0,0.00024885,2]
[385884922,1758094232688,-151.0,0.00024885,2]
[385884924,1758094232698,-151.0,0.00024885,2]
[385884926,1758094232708,-151.0,0.00024885,2]
[385884928,1758094232717,-151.0,0.00024885,2]
[385884930,1758094232728,-151.0,0.00024885,2]
[385884932,1758094232738,-151.0,0.00024885,2]
[385884934,1758094232748,-151.0,0.00024885,2]
[385884937,1758094232760,-151.0,0.00024885,2]
[385884939,1758094232769,-151.0,0.00024885,2]
[385884941,1758094232779,-151.0,0.00024885,2]
[385884943,1758094232789,-151.0,0.00024885,2]
[385884945,1758094232799,-151.0,0.00024885,2]
[385884947,1758094232809,-151.0,0.00024885,2]
[385884949,1758094232819,-151.0,0.00024885,2]
[385884951,1758094232829,-151.0,0.00024885,2]
[385884953,1758094232839,-151.0,0.00024885,2]
[385884955,1758094232849,-151.0,0.00024885,2]
[385884957,1758094232858,-151.0,0.00024885,2]
[385884959,1758094232868,-151.0,0.00024885,2]
[385884961,1758094232878,-151.0,0.00024885,2]
[385884963,1758094232888,-221.98529903,0.00024885,2]
[385884966,1758094232898,-500.0,0.00024885,2]
[385884968,1758094232907,-500.0,0.00024885,2]
[385884970,1758094232917,-500.0,0.00024885,2]
[385884972,1758094232926,-500.0,0.00024885,2]
[385884974,1758094232936,-500.0,0.00024885,2]
[385884976,1758094232946,-500.0,0.00024885,2]
[385884978,1758094232955,-500.0,0.00024885,2]
[385884980,1758094232965,-321.04118707,0.00024885,2]
[385884982,1758094232975,-400.0,0.000249,9]
[385884984,1758094232984,-13937.29340295,0.000249,2]
[385884986,1758094232994,-151.0,0.000249,7]
[385884988,1758094233003,-151.0,0.000249,7]
[385884990,1758094233013,-151.0,0.000249,7]
[385884992,1758094233023,-154.727211,0.000249,7]
[385884994,1758094233033,-191.499445,0.000249,7]
[385884996,1758094233043,-162.37164658,0.00025,3]
[385885029,1758094233338,-214.17,0.00025076,2]
[385885033,1758094233365,-808.01409516,0.000251,2]
[385885035,1758094233376,-11259.37574871,0.00025379,2]
[385885037,1758094233386,-151.0,0.00025379,7]
[385885039,1758094233395,-258.00073,0.00025379,7]
[385885041,1758094233405,-151.0,0.00025379,7]
[385885043,1758094233415,-151.0,0.00025379,7]
[385885045,1758094233424,-151.0,0.00025379,7]
[385885047,1758094233434,-151.0,0.00025379,7]
[385885049,1758094233443,-151.0,0.00025379,7]
[385885052,1758094233453,-151.0,0.00025379,7]
[385885054,1758094233463,-287.854402,0.00025379,7]
[385885055,1758094233472,-160.350345,0.00025379,7]
[385885058,1758094233481,-151.0,0.00025379,7]
[385885060,1758094233491,-151.0,0.00025379,7]
[385885062,1758094233500,-154.420028,0.00025379,7]
[385885063,1758094233510,-221.865103,0.00025379,7]
[385885065,1758094233520,-151.0,0.00025379,7]
[385885068,1758094233530,-2942.04,0.00025394,2]
[385885069,1758094233540,-600.0,0.00025433,2]
[385885071,1758094233550,-161.87,0.00025463,2]
[385885074,1758094233559,-151.0,0.00025479,7]
[385885076,1758094233568,-151.0,0.00025479,7]
[385885077,1758094233578,-151.0,0.00025479,7]
[385885079,1758094233588,-151.0,0.00025479,7]
[385885080,1758094233597,-151.0,0.00025479,7]
[385885081,1758094233607,-283.567025,0.00025479,7]
[385885082,1758094233616,-151.0,0.00025479,7]
[385885083,1758094233626,-185.940381,0.00025479,7]
[385885084,1758094233636,-151.0,0.00025479,7]
[385885085,1758094233646,-151.0,0.00025479,7]
[385885086,1758094233656,-151.0,0.00025479,7]
[385885087,1758094233666,-153.647356,0.00025479,7]
[385885088,1758094233675,-151.0,0.00025479,7]
[385885089,1758094233685,-151.0,0.00025479,7]
[385885090,1758094233694,-160.0,0.00025479,14]
[385885091,1758094233704,-160.0,0.00025479,14]
[385885093,1758094233714,-160.0,0.00025479,14]
[385885095,1758094233723,-160.0,0.00025479,14]
[385885097,1758094233733,-160.0,0.00025479,14]
[385885099,1758094233742,-160.0,0.00025479,14]
[385885101,1758094233752,-160.0,0.00025479,14]
[385885103,1758094233761,-160.0,0.00025479,14]
[385885105,1758094233771,-160.0,0.00025479,14]
[385885107,1758094233781,-160.0,0.00025479,14]
[385885109,1758094233790,-160.0,0.00025479,14]
[385885111,1758094233800,-160.0,0.00025479,14]
[385885113,1758094233810,-160.0,0.00025479,14]
[385885115,1758094233819,-160.0,0.00025479,14]
[385885117,1758094233830,-160.0,0.00025479,14]
[385885119,1758094233839,-160.0,0.00025479,14]
[385885122,1758094233849,-160.0,0.00025479,14]
[385885124,1758094233859,-160.0,0.00025479,14]
[385885126,1758094233868,-160.0,0.00025479,14]
[385885128,1758094233879,-160.0,0.00025479,14]
[385885130,1758094233889,-160.0,0.00025479,14]
[385885132,1758094233898,-160.0,0.00025479,14]
[385885134,1758094233907,-160.0,0.00025479,14]
[385885136,1758094233917,-160.0,0.00025479,14]
[385885137,1758094233926,-160.0,0.00025479,14]
[385885140,1758094233937,-160.0,0.00025479,14]
[385885142,1758094233947,-160.0,0.00025479,14]
[385885144,1758094233956,-160.0,0.00025479,14]
[385885145,1758094233965,-160.0,0.00025479,14]
[385885148,1758094233975,-160.0,0.00025479,14]
[385885150,1758094233986,-160.0,0.00025479,14]
[385885152,1758094233995,-160.0,0.00025479,14]
[385885154,1758094234004,-160.0,0.00025479,14]
[385885156,1758094234014,-160.0,0.00025479,14]
[385885158,1758094234023,-160.0,0.00025479,14]
[385885160,1758094234032,-160.0,0.00025479,14]
[385885162,1758094234042,-160.0,0.00025479,14]
[385885164,1758094234051,-160.0,0.00025479,14]
[385885166,1758094234061,-160.0,0.00025479,14]
[385885168,1758094234070,-160.0,0.00025479,14]
[385885170,1758094234079,-160.0,0.00025479,14]
[385885172,1758094234088,-160.0,0.00025479,14]
[385885174,1758094234098,-160.0,0.00025479,14]
[385885176,1758094234107,-160.0,0.00025479,14]
[385885178,1758094234116,-160.0,0.00025479,14]
[385885180,1758094234126,-160.0,0.00025479,14]
[385885182,1758094234135,-160.0,0.00025479,14]
[385885184,1758094234144,-160.0,0.00025479,14]
[385885186,1758094234154,-160.0,0.00025479,14]
[385885188,1758094234164,-160.0,0.00025479,14]
[385885190,1758094234173,-160.0,0.00025479,14]
[385885192,1758094234183,-160.0,0.00025479,14]
[385885194,1758094234192,-160.0,0.00025479,14]
[385885196,1758094234202,-160.0,0.00025479,14]
[385885198,1758094234211,-160.0,0.00025479,14]
[385885200,1758094234221,-160.0,0.00025479,14]
[385885202,1758094234230,-160.0,0.00025479,14]
[385885204,1758094234239,-160.0,0.00025479,14]
[385885206,1758094234249,-160.0,0.00025479,14]
[385885208,1758094234258,-160.0,0.00025479,14]
[385885210,1758094234268,-160.0,0.00025479,14]
[385885212,1758094234277,-160.0,0.00025479,14]
[385885214,1758094234287,-160.0,0.00025479,14]
[385885216,1758094234296,-160.0,0.00025479,14]
[385885218,1758094234305,-160.0,0.00025479,14]
[385885220,1758094234315,-160.0,0.00025479,14]
[385885222,1758094234325,-160.0,0.00025479,14]
[385885224,1758094234335,-160.0,0.00025479,14]
[385885226,1758094234344,-160.0,0.00025479,14]
[385885228,1758094234353,-160.0,0.00025479,14]
[385885230,1758094234362,-160.0,0.00025479,14]
[385885232,1758094234371,-160.0,0.00025479,14]
[385885234,1758094234381,-247.734903,0.00025479,14]
[385885236,1758094234390,-151.0,0.00025479,7]
[385885238,1758094234400,-151.0,0.00025479,7]
[385885240,1758094234409,-191.499445,0.00025479,7]
[385885242,1758094234418,-8468.21,0.00025479,2]
[385885244,1758094234427,-200.0,0.00025491,2]
[385885246,1758094234437,-675.83456915,0.00025597,2]
[385885248,1758094234447,-224.5,0.00025612,2]
[385885250,1758094234456,-924.04,0.00025612,2]
[385885252,1758094234465,-924.04,0.00025612,2]
[385885254,1758094234474,-151.0,0.00025622,7]
[385885256,1758094234483,-151.0,0.00025622,7]
[385885257,1758094234492,-191.499445,0.00025622,7]
[385885258,1758094234501,-213.18994792,0.00025622,3]
[385885259,1758094234510,-11259.37574866,0.00025623,2]
[385885260,1758094234519,-152.03,0.00025666,2]
[385885261,1758094234528,-507.0,0.0002568,2]
[385885262,1758094234538,-924.455,0.00025696,2]
[385885264,1758094234548,-516.07479255,0.00025697,3]
[385885266,1758094234557,-666.0,0.00025697,3]
[385885268,1758094234566,-341.42,0.00025709,2]
[385885270,1758094234575,-500.0,0.00025806,2]
[385885272,1758094234584,-213.89,0.0002584,2]
[385885274,1758094234594,-151.0,0.00025866,7]
[385885276,1758094234604,-151.0,0.00025866,7]
[385885278,1758094234614,-151.0,0.00025866,7]
[385885280,1758094234623,-151.0,0.00025866,7]
[385885282,1758094234632,-151.0,0.00025866,7]
[385885284,1758094234642,-151.0,0.00025866,7]
[385885285,1758094234651,-151.0,0.00025866,7]
[385885287,1758094234662,-151.0,0.00025866,7]
[385885289,1758094234671,-151.0,0.00025866,7]
[385885291,1758094234680,-151.0,0.00025866,7]
[385885293,1758094234689,-151.0,0.00025866,7]
[385885296,1758094234699,-151.0,0.00025866,7]
[385885298,1758094234708,-151.0,0.00025866,7]
[385885300,1758094234717,-151.0,0.00025866,7]
[385885302,1758094234726,-169.913131,0.00025866,7]
[385885304,1758094234736,-151.0,0.00025866,7]
[385885306,1758094234745,-191.499445,0.00025866,7]
[385885308,1758094234754,-11259.37574866,0.00025866,2]
[385885309,1758094234763,-1500.0,0.00025903,2]
[385885312,1758094234772,-500.0,0.00025956,2]
[385885314,1758094234782,-600.0,0.00025981,2]
[385885316,1758094234791,-589.4894849,0.0002599,2]
[385885318,1758094234800,-1100.32,0.00026,2]
[385885320,1758094234809,-151.0,0.00026,7]
[385885322,1758094234818,-151.0,0.00026,7]
[385885324,1758094234827,-151.0,0.00026,7]
[385885326,1758094234836,-266.884528,0.00026,7]
[385885328,1758094234845,-151.0,0.00026,7]
[385885330,1758094234855,-2013.94428387,0.00026,2]
[385885331,1758094234865,-166.37571382,0.00026,10]
[385885334,1758094234875,-151.0,0.00026,7]
[385885336,1758094234885,-1000.0,0.00026021,2]
[385885337,1758094234894,-151.0,0.00026027,7]
[385885338,1758094234903,-151.0,0.00026027,7]
[385885339,1758094234912,-151.0,0.00026027,7]
[385885340,1758094234922,-151.0,0.00026027,7]
[385885341,1758094234931,-151.0,0.00026027,7]
[385885342,1758094234941,-151.0,0.00026027,7]
[385885343,1758094234950,-151.0,0.00026027,7]
[385885344,1758094234960,-234.700355,0.00026027,7]
[385885345,1758094234969,-151.0,0.00026057,2]
[385885346,1758094234979,-151.0,0.00026057,3]
[385885347,1758094234988,-154.0,0.00026057,3]
[385885348,1758094234997,-155.0,0.00026057,3]
[385885349,1758094235007,-7000.0,0.00026057,2]
[385885350,1758094235016,-1227.0,0.00026057,3]
[385885351,1758094235025,-151.0,0.00026057,3]
[385885352,1758094235034,-155.0,0.00026057,3]
[385885353,1758094235043,-154.0,0.00026057,3]
[385885354,1758094235052,-155.0,0.00026057,3]
[385885355,1758094235061,-238.06123107,0.00026057,3]
[385885356,1758094235070,-214.10916884,0.00026057,3]
[385885357,1758094235079,-214.79500738,0.00026109,2]
[385885358,1758094235088,-11259.37574866,0.0002611,2]
[385885359,1758094235097,-151.0,0.0002611,7]
[385885360,1758094235106,-151.0,0.0002611,7]
[385885361,1758094235115,-151.0,0.0002611,7]
[385885362,1758094235124,-151.0,0.0002611,7]
[385885363,1758094235133,-151.0,0.0002611,7]
[385885364,1758094235143,-151.0,0.0002611,7]
[385885365,1758094235153,-8572.23525867,0.00026112,2]
[385885366,1758094235162,-151.0,0.00026112,7]
[385885367,1758094235171,-191.499445,0.00026112,7]
[385885368,1758094235180,-2602.41326927,0.00026117,2]
[385885369,1758094235188,-151.0,0.00026132,7]
[385885370,1758094235198,-151.0,0.00026132,7]
[385885371,1758094235207,-151.495419,0.00026132,7]
[385885372,1758094235216,-151.0,0.00026132,7]
[385885373,1758094235225,-151.0,0.00026132,7]
[385885374,1758094235234,-151.0,0.00026132,7]
[385885375,1758094235244,-500.0,0.00026173,2]
[385885376,1758094235254,-500.0,0.00026173,2]
[385885377,1758094235263,-739.0,0.00026194,2]
[385885378,1758094235272,-151.84,0.00026202,2]
[385885379,1758094235282,-9232.8195582,0.00026211,2]
[385885380,1758094235297,-22879.16302952,0.00026211,2]
[385885381,1758094235324,-1362.41290292,0.00026211,2]
[385885382,1758094235348,-337.87492754,0.00026211,2]
[385885383,1758094235359,-457.76139925,0.00026211,2]
[385885384,1758094235370,-424.96702186,0.00026211,2]
[385885385,1758094235381,-1570.47229652,0.00026211,2]
[385885386,1758094235393,-48310.50649909,0.00026211,2]
[385885387,1758094235407,-11735.0,0.00026211,2]
[385885388,1758094235427,-21889.50606307,0.00026211,2]
[385885389,1758094235438,-785.8844648,0.00026211,2]
[385885390,1758094235482,-191.499445,0.000249,7]
[385885391,1758094235492,-522.99402882,0.00026211,2]
[385885392,1758094235503,-3312.9832329,0.00026211,2]
[385885393,1758094235515,-6693.40692211,0.00026211,2]
[385885394,1758094235526,-753.9609935,0.00026211,2]
[385885395,1758094235546,-5460.11814106,0.00026211,2]
[385885396,1758094235561,-2006.83375026,0.00026211,2]
[385885397,1758094235572,-562.249999,0.00026211,2]
[385885398,1758094235583,-525.36174078,0.00026211,2]
[385885405,1758094237433,-191.499445,0.000249,7]
[385885406,1758094237442,-191.499445,0.000249,7]
[385885407,1758094237451,-204.534279,0.000249,7]
[385885408,1758094237460,-13817.75426529,0.00025479,2]
[385885409,1758094237469,-743353.38087178,0.00025479,3]
[385885410,1758094237478,-191.499445,0.00025479,7]
[385885411,1758094237487,-191.499445,0.00025479,7]
[385885412,1758094237496,-191.499445,0.00025479,7]
[385885413,1758094237504,-191.499445,0.00025622,7]
[385885414,1758094237514,-191.499445,0.00025622,7]
[385885415,1758094237523,-191.499445,0.00025622,7]
[385885416,1758094237532,-191.499445,0.00025866,7]
[385885417,1758094237541,-191.499445,0.00025866,7]
[385885418,1758094237550,-191.499445,0.00025866,7]